bitfinex/quotes_BTCUSD_20240607
["timestamp","ask_amount","ask_price","bid_price","bid_amount"]
[1717762705349,7.69801602,71912.0,71911.0,6.59827852]
[1717762705557,7.69801602,71912.0,71911.0,6.21965952]
[1717762705756,7.69801602,71912.0,71911.0,5.53953852]
[1717762705958,7.69801602,71912.0,71911.0,4.84812023]
[1717762706256,7.69801602,71912.0,71911.0,4.94812023]
[1717762706457,7.69801602,71912.0,71911.0,4.95712023]
[1717762706700,7.69801602,71912.0,71911.0,4.78425452]
[1717762706919,7.69801602,71912.0,71911.0,4.97725452]
[1717762707087,7.69801602,71912.0,71911.0,5.15011716]
[1717762707288,7.69801602,71912.0,71911.0,4.08425452]
[1717762707508,7.69801602,71912.0,71911.0,4.07525452]
[1717762707731,7.69801602,71912.0,71911.0,4.24244377]
[1717762707928,7.69801602,71912.0,71911.0,4.31430406]
[1717762708134,7.77751602,71912.0,71911.0,3.66417277]
[1717762708341,7.94181602,71912.0,71911.0,2.92383913]
[1717762708452,7.94181602,71912.0,71911.0,2.32438678]
[1717762708662,7.94181602,71912.0,71911.0,2.37845257]
[1717762709094,7.94181602,71912.0,71911.0,2.03403364]
[1717762709553,7.94181602,71912.0,71911.0,2.02503364]
[1717762710128,7.94181602,71912.0,71911.0,2.03403364]
[1717762710330,7.94181602,71912.0,71911.0,2.10772673]
[1717762710527,7.94181602,71912.0,71911.0,2.09872673]
[1717762710731,7.94181602,71912.0,71911.0,2.10772673]
[1717762710934,7.94181602,71912.0,71911.0,1.89719685]
[1717762711131,7.94181602,71912.0,71911.0,1.61907585]
[1717762711433,7.94181602,71912.0,71911.0,1.52791264]
[1717762711646,7.94181602,71912.0,71911.0,1.41918006]
[1717762711819,7.94181602,71912.0,71911.0,1.42818006]
[1717762712038,7.94181602,71912.0,71911.0,1.62818006]
[1717762712249,7.94181602,71912.0,71911.0,1.72818006]
[1717762712424,7.94181602,71912.0,71911.0,1.72817381]
[1717762713088,7.94181602,71912.0,71911.0,1.41017381]
[1717762713283,7.94181602,71912.0,71911.0,1.41917381]
[1717762713487,7.94181602,71912.0,71911.0,1.74817381]
[1717762713662,7.94181602,71912.0,71911.0,2.02629481]
[1717762713878,7.94181602,71912.0,71911.0,1.61503364]
[1717762714080,7.94181602,71912.0,71911.0,1.93503364]
[1717762714686,7.94181602,71912.0,71911.0,1.94403364]
[1717762714865,7.94181602,71912.0,71911.0,1.92603364]
[1717762715065,7.94181602,71912.0,71911.0,1.90603364]
[1717762715516,7.94181602,71912.0,71911.0,1.98817203]
[1717762715669,7.94181602,71912.0,71911.0,1.99817203]
[1717762715861,7.94181602,71912.0,71911.0,2.00817203]
[1717762716063,7.94181602,71912.0,71911.0,1.98817203]
[1717762716302,7.94181602,71912.0,71911.0,1.99717203]
[1717762716478,7.94181602,71912.0,71911.0,2.02617203]
[1717762716682,7.94181602,71912.0,71911.0,2.01717203]
[1717762717034,7.94181602,71912.0,71911.0,1.98817203]
[1717762717233,7.94181602,71912.0,71911.0,1.92403364]
[1717762717579,7.94181602,71912.0,71911.0,2.00818381]
[1717762717764,7.94181602,71912.0,71911.0,1.93505626]
[1717762717972,7.94181602,71912.0,71911.0,1.94405626]
[1717762718175,7.94181602,71912.0,71911.0,1.93505626]
[1717762719231,7.94181602,71912.0,71911.0,2.2049918]
[1717762719446,7.69801602,71912.0,71911.0,2.07047519]
[1717762719737,7.69801602,71912.0,71911.0,2.08847519]
[1717762719935,7.69801602,71912.0,71911.0,2.85267519]
[1717762720145,7.69801602,71912.0,71911.0,2.81442619]
[1717762720347,7.69801602,71912.0,71911.0,2.70351748]
[1717762720621,7.69801602,71912.0,71911.0,2.31765491]
[1717762720825,7.69801602,71912.0,71911.0,1.91507598]
[1717762720826,7.77331602,71912.0,71911.0,1.91507598]
[1717762721023,7.92971602,71912.0,71911.0,2.01773996]
[1717762721347,7.92971602,71912.0,71911.0,1.92608735]
[1717762721599,7.92971602,71912.0,71911.0,2.02875133]
[1717762722521,7.69801602,71912.0,71911.0,2.35862728]
[1717762722735,7.69801602,71912.0,71911.0,2.68062728]
[1717762722939,7.69801602,71912.0,71911.0,2.69962728]
[1717762723341,7.69801602,71912.0,71911.0,2.81662728]
[1717762723484,7.69801602,71912.0,71911.0,2.82562728]
[1717762723694,7.69801602,71912.0,71911.0,2.83462728]
[1717762723896,7.69801602,71912.0,71911.0,3.46940098]
[1717762724091,7.69801602,71912.0,71911.0,3.46040098]
[1717762724300,7.69801602,71912.0,71911.0,3.47840098]
[1717762724490,7.69801602,71912.0,71911.0,3.46940098]
[1717762724851,7.69801602,71912.0,71911.0,3.47140098]
[1717762725050,7.69801602,71912.0,71911.0,3.48040098]
[1717762725680,7.69801602,71912.0,71911.0,3.46940098]
[1717762726141,7.69801602,71912.0,71911.0,3.46840098]
[1717762726469,7.69801602,71912.0,71911.0,3.46940098]
[1717762726877,7.69801602,71912.0,71911.0,3.68040098]
[1717762727081,7.69801602,71912.0,71911.0,3.84810098]
[1717762728464,7.69801602,71912.0,71911.0,4.38514994]
[1717762728995,7.69801602,71912.0,71911.0,5.08514994]
[1717762729120,7.69801602,71912.0,71911.0,5.09414994]
[1717762729313,7.69801602,71912.0,71911.0,4.92644994]
[1717762729518,7.69801602,71912.0,71911.0,5.09414994]
[1717762729869,7.69801602,71912.0,71911.0,5.08609594]
[1717762730364,7.69801602,71912.0,71911.0,5.09509594]
[1717762730508,7.62324551,71912.0,71911.0,5.40225379]
[1717762730709,7.60724551,71912.0,71911.0,5.5825673]
[1717762730916,7.50553269,71912.0,71911.0,5.8439986]
[1717762731119,7.50553269,71912.0,71911.0,5.87924402]
[1717762731458,7.38411269,71912.0,71911.0,5.87924402]
[1717762731627,7.38411269,71912.0,71911.0,5.8349986]
[1717762731850,7.35721269,71912.0,71911.0,5.8349986]
[1717762732065,7.35721269,71912.0,71911.0,5.8439986]
[1717762732470,7.35721269,71912.0,71911.0,5.64355379]
[1717762732674,7.29830269,71912.0,71911.0,5.41125379]
[1717762732923,7.29830269,71912.0,71911.0,5.40225379]
[1717762733100,7.29830269,71912.0,71911.0,5.39870728]
[1717762733506,7.29830269,71912.0,71911.0,5.40770728]
[1717762733703,7.29830269,71912.0,71911.0,5.80770728]
[1717762733905,7.29830269,71912.0,71911.0,5.41670728]
[1717762734165,7.29830269,71912.0,71911.0,5.38970728]
[1717762734477,7.29830269,71912.0,71911.0,5.79870728]
[1717762734687,7.29830269,71912.0,71911.0,5.40770728]
[1717762734902,7.29830269,71912.0,71911.0,6.40537684]
[1717762735079,7.29830269,71912.0,71911.0,5.80770728]
[1717762735248,7.29830269,71912.0,71911.0,5.79870728]
[1717762735638,7.29830269,71912.0,71911.0,5.80770728]
[1717762735843,7.29830269,71912.0,71911.0,5.79870728]
[1717762736288,7.29830269,71912.0,71911.0,5.80770728]
[1717762736500,7.29830269,71912.0,71911.0,5.80758647]
[1717762736891,7.29830269,71912.0,71911.0,5.79858647]
[1717762737068,7.07681269,71912.0,71911.0,5.68733128]
[1717762737269,7.06593269,71912.0,71911.0,5.7340179]
[1717762737501,7.06593269,71912.0,71911.0,9.7914889]
[1717762737673,7.06593269,71912.0,71911.0,10.9255815]
[1717762738021,7.06593269,71912.0,71911.0,10.6004065]
[1717762738176,7.06593269,71912.0,71911.0,10.6094065]
[1717762738375,7.06593269,71912.0,71911.0,10.6004065]
[1717762738579,7.06593269,71912.0,71911.0,10.85907829]
[1717762738774,7.05093269,71912.0,71911.0,10.86784119]
[1717762738979,7.05093269,71912.0,71911.0,10.69102152]
[1717762739347,7.05093269,71912.0,71911.0,10.26424169]
[1717762739540,7.05093269,71912.0,71911.0,10.17245567]
[1717762739865,7.05093269,71912.0,71911.0,10.20520048]
[1717762740067,7.05093269,71912.0,71911.0,10.19620048]
[1717762740271,7.05093269,71912.0,71911.0,10.12576905]
[1717762740468,7.05093269,71912.0,71911.0,10.13476905]
[1717762740943,7.05093269,71912.0,71911.0,9.86604372]
[1717762741439,7.05093269,71912.0,71911.0,9.87504372]
[1717762741776,7.05093269,71912.0,71911.0,10.01354152]
[1717762742427,7.05093269,71912.0,71911.0,10.04622019]
[1717762742634,7.05093269,71912.0,71911.0,10.04621768]
[1717762742832,7.00922041,71912.0,71911.0,10.04621768]
[1717762743646,7.00886441,71912.0,71911.0,9.87851768]
[1717762743837,7.00886441,71912.0,71911.0,10.04621768]
[1717762744310,6.99386441,71912.0,71911.0,10.04621768]
[1717762744501,6.99386441,71912.0,71911.0,6.44001968]
[1717762744719,6.99386441,71912.0,71911.0,10.78383]
[1717762744961,6.99386441,71912.0,71911.0,9.52073515]
[1717762745074,6.99386441,71912.0,71911.0,8.92306559]
[1717762745277,6.99386441,71912.0,71911.0,8.90133763]
[1717762745593,6.99386441,71912.0,71911.0,8.89233763]
[1717762745798,6.99386441,71912.0,71911.0,9.49341282]
[1717762746405,6.99386441,71912.0,71911.0,9.48428578]
[1717762746846,6.99386441,71912.0,71911.0,9.50728578]
[1717762747177,6.99386441,71912.0,71911.0,9.95643094]
[1717762747786,6.99386441,71912.0,71911.0,9.94743094]
[1717762747986,6.99386441,71912.0,71911.0,10.17528744]
[1717762749335,6.99386441,71912.0,71911.0,10.18428744]
[1717762749540,6.99386441,71912.0,71911.0,10.17528744]
[1717762749740,6.99386441,71912.0,71911.0,9.35494228]
[1717762750026,6.99386441,71912.0,71911.0,9.83516828]
[1717762750447,6.99386441,71912.0,71911.0,9.44416828]
[1717762750724,6.99386441,71912.0,71911.0,9.84416828]
[1717762750933,6.99386441,71912.0,71911.0,9.43916828]
[1717762751126,6.99386441,71912.0,71911.0,9.44816828]
[1717762751300,6.99386441,71912.0,71911.0,9.43916828]
[1717762751498,6.99386441,71912.0,71911.0,9.26216828]
[1717762752315,6.99386441,71912.0,71911.0,9.27107553]
[1717762752767,6.99386441,71912.0,71911.0,9.27016253]
[1717762752958,6.99386441,71912.0,71911.0,8.93756053]
[1717762753105,6.99386441,71912.0,71911.0,9.26956053]
[1717762753309,6.99386441,71912.0,71911.0,9.26828179]
[1717762753535,6.99386441,71912.0,71911.0,9.03628179]
[1717762754067,6.99386441,71912.0,71911.0,9.36828179]
[1717762754352,6.99386441,71912.0,71911.0,9.36628179]
[1717762754532,7.23546441,71912.0,71911.0,7.52887479]
[1717762754919,7.23546441,71912.0,71911.0,6.9277996]
[1717762755342,7.23546441,71912.0,71911.0,7.0277996]
[1717762755547,7.23546441,71912.0,71911.0,6.9202756]
[1717762755887,7.23546441,71912.0,71911.0,6.94200503]
[1717762756021,7.23546441,71912.0,71911.0,6.95200503]
[1717762756398,7.23546441,71912.0,71911.0,6.95223323]
[1717762756561,7.23546441,71912.0,71911.0,7.13729088]
[1717762756778,7.23546441,71912.0,71911.0,6.94873846]
[1717762757393,7.14546441,71912.0,71911.0,6.93940805]
[1717762757553,7.14546441,71912.0,71911.0,6.75833105]
[1717762759036,7.14546441,71912.0,71911.0,6.43833105]
[1717762759771,7.14546441,71912.0,71911.0,6.76833105]
[1717762760599,7.14546441,71912.0,71911.0,6.76933105]
[1717762760800,7.14546441,71912.0,71911.0,6.77033105]
[1717762761024,7.14546441,71912.0,71911.0,6.76933105]
[1717762761208,7.14546441,71912.0,71911.0,6.20146884]
[1717762761413,6.90386441,71912.0,71911.0,7.11539773]
[1717762761637,6.90386441,71912.0,71911.0,5.80523773]
[1717762761638,6.73933442,71912.0,71911.0,5.80523773]
[1717762761782,6.6976208,71912.0,71911.0,5.84538289]
[1717762762154,6.6976208,71912.0,71911.0,10.89538289]
[1717762762358,6.6976208,71912.0,71911.0,10.22048073]
[1717762762567,6.6976208,71912.0,71911.0,10.80413679]
[1717762762980,6.6976208,71912.0,71911.0,10.79513679]
[1717762763142,6.6976208,71912.0,71911.0,10.78613679]
[1717762763359,6.6976208,71912.0,71911.0,10.79513679]
[1717762763582,6.6976208,71912.0,71911.0,10.80413679]
[1717762764183,6.54752081,71912.0,71911.0,10.80413679]
[1717762764540,6.54752081,71912.0,71911.0,11.77903629]
[1717762764729,6.54752081,71912.0,71911.0,11.77003629]
[1717762764853,6.54752081,71912.0,71911.0,11.76103629]
[1717762765207,6.54752081,71912.0,71911.0,11.77903629]
[1717762765446,6.54752081,71912.0,71911.0,11.77895195]
[1717762765593,6.54752081,71912.0,71911.0,11.76095195]
[1717762765830,6.54752081,71912.0,71911.0,11.76995195]
[1717762766001,6.54752081,71912.0,71911.0,11.77895195]
[1717762766198,6.54020704,71912.0,71911.0,11.76934995]
[1717762766410,6.51620704,71912.0,71911.0,11.76034995]
[1717762766610,6.51620704,71912.0,71911.0,11.76934995]
[1717762766818,5.49044704,71912.0,71911.0,11.58120056]
[1717762766982,5.44670584,71912.0,71911.0,7.54406564]
[1717762767178,5.40499669,71912.0,71911.0,11.94388165]
[1717762767380,5.29784669,71912.0,71911.0,12.6305657]
[1717762767782,5.29784669,71912.0,71911.0,12.55988425]
[1717762767979,5.29784669,71912.0,71911.0,12.55088425]
[1717762768185,5.29784669,71912.0,71911.0,12.77358478]
[1717762768386,5.29659623,71912.0,71911.0,12.56888425]
[1717762768596,5.28826234,71912.0,71911.0,12.55988425]
[1717762768797,5.28826234,71912.0,71911.0,12.55088425]
[1717762769053,5.28826234,71912.0,71911.0,12.55988425]
[1717762769231,5.28826234,71912.0,71911.0,12.56888425]
[1717762769445,5.1842051,71912.0,71911.0,12.56888425]
[1717762769648,5.1842051,71912.0,71911.0,12.6305657]
[1717762769797,5.1842051,71912.0,71911.0,13.41561639]
[1717762769997,5.1402051,71912.0,71911.0,13.12729319]
[1717762770232,5.1402051,71912.0,71911.0,13.52456087]
[1717762770442,5.1402051,71912.0,71911.0,13.42456087]
[1717762770641,5.1242051,71912.0,71911.0,13.41556087]
[1717762770843,4.9678151,71912.0,71911.0,13.51556087]
[1717762771112,4.9098151,71912.0,71911.0,13.51556087]
[1717762771686,4.9098151,71912.0,71911.0,13.50656087]
[1717762771932,4.9098151,71912.0,71911.0,13.51556087]
[1717762772335,4.9098151,71912.0,71911.0,13.52456087]
[1717762772534,4.8638151,71912.0,71911.0,13.50656087]
[1717762772875,4.82451141,71912.0,71911.0,13.47693322]
[1717762773079,4.82451141,71912.0,71911.0,13.90034758]
[1717762773515,4.82451141,71912.0,71911.0,13.86760277]
[1717762773848,4.78280694,71912.0,71911.0,13.86760277]
[1717762774041,4.76680695,71912.0,71911.0,13.86760277]
[1717762774254,4.75680695,71912.0,71911.0,13.76760277]
[1717762774898,4.75265203,71912.0,71911.0,13.76760277]
[1717762775245,4.75265203,71912.0,71911.0,13.72966613]
[1717762775451,4.75265203,71912.0,71911.0,13.82966613]
[1717762775844,4.75265203,71912.0,71911.0,13.86241094]
[1717762776255,4.75265203,71912.0,71911.0,13.86180894]
[1717762777039,4.74174981,71912.0,71911.0,13.89974558]
[1717762777446,4.73758014,71912.0,71911.0,13.89974558]
[1717762777970,4.73758014,71912.0,71911.0,14.42734858]
[1717762777971,4.72587966,71912.0,71911.0,14.42734858]
[1717762778145,4.72461805,71912.0,71911.0,14.59504858]
[1717762778543,4.69361805,71912.0,71911.0,14.57050269]
[1717762779123,4.65191403,71912.0,71911.0,14.57050269]
[1717762780610,4.64916438,71912.0,71911.0,14.57050269]
[1717762781047,4.64916438,71912.0,71911.0,14.43775788]
[1717762781255,4.64916438,71912.0,71911.0,13.65270719]
[1717762781455,4.64916438,71912.0,71911.0,14.53294103]
[1717762781711,4.62780438,71912.0,71911.0,14.56568584]
[1717762782582,4.62780438,71912.0,71911.0,14.48249584]
[1717762782717,4.62780438,71912.0,71911.0,14.08035248]
[1717762782920,4.61571438,71912.0,71911.0,14.48249584]
[1717762783123,4.61352438,71912.0,71911.0,14.48249584]
[1717762783322,4.54435438,71912.0,71911.0,13.702262]
[1717762783835,4.54435438,71912.0,71911.0,13.66432536]
[1717762784201,4.54435438,71912.0,71911.0,14.44362078]
[1717762784475,4.53439438,71912.0,71911.0,13.66432536]
[1717762784830,4.52940665,71912.0,71911.0,12.90863521]
[1717762785036,4.52940665,71912.0,71911.0,13.68221294]
[1717762785232,4.51940665,71912.0,71911.0,13.68221294]
[1717762785439,4.50911751,71912.0,71911.0,13.72430759]
[1717762786078,4.46741312,71912.0,71911.0,13.72430759]
[1717762786310,4.46741312,71912.0,71911.0,14.50298787]
[1717762786443,4.46741312,71912.0,71911.0,13.72369988]
[1717762786998,4.46741312,71912.0,71911.0,14.4723338]
[1717762787573,4.41941312,71912.0,71911.0,13.69364933]
[1717762788378,4.4182723,71912.0,71911.0,13.37020452]
[1717762788628,4.4182723,71912.0,71911.0,13.53790452]
[1717762788812,4.4182723,71912.0,71911.0,13.49580987]
[1717762789155,4.4182723,71912.0,71911.0,13.49598139]
[1717762789659,4.4182723,71912.0,71911.0,13.51898139]
[1717762789812,4.4182723,71912.0,71911.0,13.51887261]
[1717762790619,4.3983843,71912.0,71911.0,13.51887261]
[1717762790996,4.3918843,71912.0,71911.0,13.51887261]
[1717762791221,4.35017549,71912.0,71911.0,13.28527741]
[1717762791620,4.35017549,71912.0,71911.0,13.51813839]
[1717762791783,4.35017549,71912.0,71911.0,12.77550508]
[1717762791984,4.35017549,71912.0,71911.0,13.49289073]
[1717762792201,4.35017549,71912.0,71911.0,13.45639067]
[1717762792202,4.50457549,71912.0,71911.0,13.45639067]
[1717762792412,4.50252108,71912.0,71911.0,13.45639067]
[1717762792774,4.50252108,71912.0,71911.0,13.05424731]
[1717762792946,4.34812108,71912.0,71911.0,13.45670208]
[1717762793123,4.34812108,71912.0,71911.0,13.22151732]
[1717762793325,4.34812108,71912.0,71911.0,13.24451732]
[1717762793728,4.34812108,71912.0,71911.0,13.47679943]
[1717762794043,4.34684582,71912.0,71911.0,13.47679943]
[1717762794413,4.34684582,71912.0,71911.0,13.74154154]
[1717762794609,4.34684582,71912.0,71911.0,13.90924154]
[1717762795986,4.34684582,71912.0,71911.0,13.37724154]
[1717762796160,4.42664582,71912.0,71911.0,13.90863369]
[1717762796579,4.42664582,71912.0,71911.0,13.91090989]
[1717762797753,4.42664582,71912.0,71911.0,13.37890989]
[1717762797955,4.38493724,71912.0,71911.0,13.91090989]
[1717762798658,4.38493724,71912.0,71911.0,13.37890989]
[1717762798851,4.38493724,71912.0,71911.0,13.91090989]
[1717762799059,4.54003724,71912.0,71911.0,13.91090989]
[1717762799468,4.54003724,71912.0,71911.0,13.22422584]
[1717762800871,4.54003724,71912.0,71911.0,12.97344856]
[1717762801486,4.54003724,71912.0,71911.0,12.99144856]
[1717762801687,4.54003724,71912.0,71911.0,12.98244856]
[1717762801816,4.54003724,71912.0,71911.0,12.97344856]
[1717762802019,4.54003724,71912.0,71911.0,12.98244856]
[1717762802215,4.54003724,71912.0,71911.0,12.90688396]
[1717762802450,4.54003724,71912.0,71911.0,12.36788396]
[1717762802645,4.54003724,71912.0,71911.0,12.36588396]
[1717762802847,4.54003724,71912.0,71911.0,12.32772919]
[1717762803048,4.54003724,71912.0,71911.0,12.33199323]
[1717762803268,4.54003724,71912.0,71911.0,13.18836545]
[1717762804572,4.54003724,71912.0,71911.0,13.19736545]
[1717762804772,4.54003724,71912.0,71911.0,13.77402287]
[1717762804960,4.54003724,71912.0,71911.0,13.75602287]
[1717762805153,4.54003724,71912.0,71911.0,13.59732287]
[1717762805387,4.54003724,71912.0,71911.0,13.67402287]
[1717762806396,4.54003724,71912.0,71911.0,13.67842708]
[1717762807527,4.54003724,71912.0,71911.0,12.25183215]
[1717762807716,4.54003724,71912.0,71911.0,6.08487888]
[1717762807939,4.54003724,71912.0,71911.0,4.47017068]
[1717762808134,4.54003724,71912.0,71911.0,5.22730168]
[1717762808287,4.54003724,71912.0,71911.0,5.17940042]
[1717762808491,4.54003724,71912.0,71911.0,4.81511442]
[1717762808695,4.54003724,71912.0,71911.0,4.80620686]
[1717762808908,4.54003724,71912.0,71911.0,4.82420686]
[1717762809101,4.53364414,71912.0,71911.0,4.82420686]
[1717762809304,4.53364414,71912.0,71911.0,4.09520686]
[1717762809505,4.53364414,71912.0,71911.0,3.99349234]
[1717762809705,4.53364414,71912.0,71911.0,3.57005023]
[1717762810230,4.53364414,71912.0,71911.0,3.38292923]
[1717762810409,4.53364414,71912.0,71911.0,3.40292923]
[1717762811223,4.53364414,71912.0,71911.0,3.39392923]
[1717762811426,4.53364414,71912.0,71911.0,3.40292923]
[1717762811629,4.53364414,71912.0,71911.0,3.71405023]
[1717762811843,4.53364414,71912.0,71911.0,4.13649234]
[1717762812055,4.53364414,71912.0,71911.0,4.13514889]
[1717762812479,4.53364414,71912.0,71911.0,4.14514889]
[1717762812689,4.53364414,71912.0,71911.0,4.15414889]
[1717762813105,4.27922887,71912.0,71911.0,5.53426989]
[1717762813322,4.27108415,71912.0,71911.0,5.58210354]
[1717762813535,4.50388415,71912.0,71911.0,5.19198254]
[1717762813961,4.50388415,71912.0,71911.0,5.20198254]
[1717762814073,4.50388415,71912.0,71911.0,5.19198254]
[1717762814279,4.50388415,71912.0,71911.0,5.30198254]
[1717762814478,4.50388415,71912.0,71911.0,5.30398254]
[1717762814727,4.50388415,71912.0,71911.0,5.8766386]
[1717762814895,4.50388415,71912.0,71911.0,6.0786386]
[1717762815103,4.50388415,71912.0,71911.0,5.30198254]
[1717762815712,4.50388415,71912.0,71911.0,4.96557754]
[1717762816136,4.50388415,71912.0,71911.0,9.36127154]
[1717762816336,4.50388415,71912.0,71911.0,9.7410926]
[1717762816540,4.50388415,71912.0,71911.0,9.1456506]
[1717762816744,4.50388415,71912.0,71911.0,9.1546506]
[1717762817097,4.50388415,71912.0,71911.0,9.9353493]
[1717762817943,4.50388415,71912.0,71911.0,10.2154703]
[1717762818747,4.50388415,71912.0,71911.0,10.2064703]
[1717762819299,4.50388415,71912.0,71911.0,10.20639508]
[1717762819695,4.50388415,71912.0,71911.0,10.21339508]
[1717762819865,4.50388415,71912.0,71911.0,10.20439508]
[1717762820094,4.50388415,71912.0,71911.0,10.20639508]
[1717762820278,4.50388415,71912.0,71911.0,10.11539508]
[1717762820490,4.50388415,71912.0,71911.0,10.21539508]
[1717762820702,4.50388415,71912.0,71911.0,10.21339508]
[1717762820864,4.50388415,71912.0,71911.0,10.21539508]
[1717762821061,4.27108415,71912.0,71911.0,10.31539508]
[1717762821288,4.27108415,71912.0,71911.0,10.40639508]
[1717762821669,4.27108415,71912.0,71911.0,10.39739508]
[1717762822079,4.27108415,71912.0,71911.0,10.40639508]
[1717762822468,4.27108415,71912.0,71911.0,10.20439508]
[1717762822764,4.27108415,71912.0,71911.0,10.19763807]
[1717762823005,4.27108415,71912.0,71911.0,10.41563807]
[1717762823344,4.27108415,71912.0,71911.0,10.40663807]
[1717762823751,4.27108415,71912.0,71911.0,10.41563807]
[1717762823954,4.27108415,71912.0,71911.0,10.58333807]
[1717762824132,4.27108415,71912.0,71911.0,10.38133807]
[1717762824646,4.27108415,71912.0,71911.0,9.42017201]
[1717762824845,4.27108415,71912.0,71911.0,10.40362874]
[1717762825429,4.51508415,71912.0,71911.0,9.10304274]
[1717762825640,4.51508415,71912.0,71911.0,7.76808674]
[1717762826014,4.51508415,71912.0,71911.0,7.75908674]
[1717762826213,4.51508415,71912.0,71911.0,7.75880515]
[1717762826486,4.51508415,71912.0,71911.0,7.7675013]
[1717762826691,4.51508415,71912.0,71911.0,8.3556223]
[1717762826895,4.51508415,71912.0,71911.0,8.3786223]
[1717762827085,4.51508415,71912.0,71911.0,8.3596223]
[1717762827496,4.51508415,71912.0,71911.0,8.3686223]
[1717762829570,4.51508415,71912.0,71911.0,8.5363223]
[1717762830463,4.51508415,71912.0,71911.0,7.7905013]
[1717762830662,4.51508415,71912.0,71911.0,8.0686223]
[1717762830930,4.51508415,71912.0,71911.0,7.7905013]
[1717762831138,4.42708415,71912.0,71911.0,7.8025013]
[1717762831341,4.42708415,71912.0,71911.0,8.0786223]
[1717762831763,4.42708415,71912.0,71911.0,8.09267943]
[1717762832113,4.42708415,71912.0,71911.0,8.08581756]
[1717762832750,4.42708415,71912.0,71911.0,8.08271514]
[1717762832948,4.42708415,71912.0,71911.0,7.79769656]
[1717762833139,4.42708415,71912.0,71911.0,7.79769597]
[1717762833935,4.42708415,71912.0,71911.0,7.86449597]
[1717762834306,4.42708415,71912.0,71911.0,7.79769597]
[1717762834467,4.42708415,71912.0,71911.0,7.86449597]
[1717762834877,4.50798415,71912.0,71911.0,7.75469597]
[1717762835078,4.50798415,71912.0,71911.0,5.93399997]
[1717762835280,4.50798415,71912.0,71911.0,4.13431508]
[1717762835481,4.50798415,71912.0,71911.0,6.04028195]
[1717762835801,4.50798415,71912.0,71911.0,5.65564395]
[1717762836009,4.50798415,71912.0,71911.0,5.64664395]
[1717762836210,4.50798415,71912.0,71911.0,5.97564395]
[1717762836378,4.50798415,71912.0,71911.0,5.6550361]
[1717762836583,4.50798415,71912.0,71911.0,5.9750361]
[1717762836781,4.50798415,71912.0,71911.0,6.76948546]
[1717762837026,4.50798415,71912.0,71911.0,6.95497958]
[1717762837196,4.50798415,71912.0,71911.0,6.96397958]
[1717762837582,4.50798415,71912.0,71911.0,6.71815658]
[1717762837802,4.50798415,71912.0,71911.0,6.71758158]
[1717762838388,4.50798415,71912.0,71911.0,5.06966158]
[1717762838588,4.50798415,71912.0,71911.0,3.95305446]
[1717762838759,4.50798415,71912.0,71911.0,3.82061235]
[1717762838943,4.50798415,71912.0,71911.0,3.71088787]
[1717762839112,4.50798415,71912.0,71911.0,3.57844576]
[1717762839523,4.50798415,71912.0,71911.0,3.55671765]
[1717762839719,4.50798415,71912.0,71911.0,2.83417772]
[1717762839952,4.50798415,71912.0,71911.0,2.23683453]
[1717762840558,4.50798415,71912.0,71911.0,2.22783453]
[1717762840762,4.50798415,71912.0,71911.0,2.24783453]
[1717762840963,4.50798415,71912.0,71911.0,2.23683453]
[1717762841178,4.50798415,71912.0,71911.0,2.51917391]
[1717762841388,4.50798415,71912.0,71911.0,2.33679]
[1717762841607,4.50798415,71912.0,71911.0,2.51917391]
[1717762841820,4.50798415,71912.0,71911.0,2.33679]
[1717762842025,4.50798415,71912.0,71911.0,2.51017391]
[1717762842242,4.50798415,71912.0,71911.0,2.51917391]
[1717762842645,4.50798415,71912.0,71911.0,2.51867668]
[1717762842897,4.50798415,71912.0,71911.0,2.52967668]
[1717762843130,4.50798415,71912.0,71911.0,2.50967668]
[1717762843363,4.50798415,71912.0,71911.0,2.51867668]
[1717762843588,4.50798415,71912.0,71911.0,2.33629277]
[1717762843817,4.50798415,71912.0,71911.0,2.51867668]
[1717762844293,4.27108415,71912.0,71911.0,2.94589561]
[1717762844517,4.27108415,71912.0,71911.0,3.23302768]
[1717762844737,4.27108415,71912.0,71911.0,3.46281089]
[1717762844959,4.50448415,71912.0,71911.0,3.99217182]
[1717762845176,4.50448415,71912.0,71911.0,3.98317182]
[1717762845445,4.50448415,71912.0,71911.0,4.384884]
[1717762845653,4.50448415,71912.0,71911.0,4.42461438]
[1717762845870,4.50448415,71912.0,71911.0,3.94568064]
[1717762846080,4.50448415,71912.0,71911.0,3.38950527]
[1717762846293,4.50448415,71912.0,71911.0,3.38859432]
[1717762846528,4.50448415,71912.0,71911.0,3.35586394]
[1717762846767,4.50448415,71912.0,71911.0,3.16377894]
[1717762846992,4.50448415,71912.0,71911.0,3.44618096]
[1717762847210,4.50448415,71912.0,71911.0,4.17549694]
[1717762847424,4.50448415,71912.0,71911.0,4.19722698]
[1717762847641,4.50448415,71912.0,71911.0,4.62066909]
[1717762847854,4.50448415,71912.0,71911.0,4.64001719]
[1717762848068,4.50448415,71912.0,71911.0,4.64901719]
[1717762848284,4.50448415,71912.0,71911.0,4.59121719]
[1717762848496,4.50448415,71912.0,71911.0,4.65800137]
[1717762848713,4.46648415,71912.0,71911.0,4.6523236]
[1717762849139,4.46648415,71912.0,71911.0,4.6613236]
[1717762849595,4.46648415,71912.0,71911.0,4.6433236]
[1717762850266,4.46648415,71912.0,71911.0,4.66082084]
[1717762850478,4.23308415,71912.0,71911.0,4.77050245]
[1717762850903,4.23308415,71912.0,71911.0,4.78045313]
[1717762851108,4.23308415,71912.0,71911.0,4.771035]
[1717762851308,4.23308415,71912.0,71911.0,4.792035]
[1717762851516,4.23308415,71912.0,71911.0,4.780035]
[1717762851946,4.23308415,71912.0,71911.0,4.789035]
[1717762852272,4.23308415,71912.0,71911.0,4.78029246]
[1717762852463,4.23308415,71912.0,71911.0,4.77129246]
[1717762852661,4.23308415,71912.0,71911.0,4.61349246]
[1717762852861,4.23308415,71912.0,71911.0,4.59948717]
[1717762853108,4.23308415,71912.0,71911.0,4.66628717]
[1717762853448,4.23308415,71912.0,71911.0,4.34624688]
[1717762853560,4.23308415,71912.0,71911.0,4.66624688]
[1717762853762,4.23308415,71912.0,71911.0,4.45548599]
[1717762853971,4.23308415,71912.0,71911.0,4.60277208]
[1717762854185,4.23308415,71912.0,71911.0,4.66957208]
[1717762854760,4.46698415,71912.0,71911.0,4.32970408]
[1717762854960,4.46698415,71912.0,71911.0,3.90716415]
[1717762855165,4.46698415,71912.0,71911.0,3.40292852]
[1717762855383,4.46698415,71912.0,71911.0,2.94348315]
[1717762855495,4.46698415,71912.0,71911.0,2.72184676]
[1717762855721,4.46698415,71912.0,71911.0,2.66528776]
[1717762856174,4.46698415,71912.0,71911.0,2.65628776]
[1717762856387,4.46698415,71912.0,71911.0,2.66437517]
[1717762856605,4.46698415,71912.0,71911.0,2.65537517]
[1717762856848,4.46698415,71912.0,71911.0,2.67537517]
[1717762857083,4.46698415,71912.0,71911.0,2.52037717]
[1717762857289,4.46698415,71912.0,71911.0,2.70280685]
[1717762857484,4.46698415,71912.0,71911.0,2.32630055]
[1717762858414,4.46698415,71912.0,71911.0,2.31730055]
[1717762858614,4.46698415,71912.0,71911.0,2.32630055]
[1717762858821,4.46698415,71912.0,71911.0,2.33530055]